[Event "Early-Titled-Tuesday-Blitz-January-30-2024"]
[Site "Chess.com"]
[Date "2024.01.30"]
[Round "2"]
[White "GMBenjaminBok"]
[Black "YurasovMat-2012"]
[Result "1/2-1/2"]
[WhiteElo "2946"]
[BlackElo "2615"]
[TimeControl "180+1"]
[EndTime "8:22:07 PST"]
[Termination "Game drawn by repetition"]

1. d4 {[%clk 0:03:00.9]} 1... d5 {[%clk 0:02:59.5]} 2. c4 {[%clk 0:02:59.9]}
2... c6 {[%clk 0:02:59.5]} 3. Nf3 {[%clk 0:02:59.7]} 3... Nf6 {[%clk 0:02:59.1]}
4. cxd5 {[%clk 0:03:00]} 4... cxd5 {[%clk 0:02:59.1]} 5. Nc3 {[%clk 0:03:00.7]}
5... Nc6 {[%clk 0:02:58.9]} 6. Bf4 {[%clk 0:03:01.3]} 6... Bf5 {[%clk
0:02:56.7]} 7. e3 {[%clk 0:03:01.2]} 7... e6 {[%clk 0:02:54.3]} 8. Qb3 {[%clk
0:03:01.3]} 8... Bb4 {[%clk 0:02:40.4]} 9. Ne5 {[%clk 0:03:00.8]} 9... Qa5
{[%clk 0:02:27.2]} 10. Nxc6 {[%clk 0:02:54.5]} 10... bxc6 {[%clk 0:02:26.8]} 11.
Be2 {[%clk 0:02:53.6]} 11... O-O {[%clk 0:02:22.9]} 12. O-O {[%clk 0:02:53.5]}
12... c5 {[%clk 0:02:14.8]} 13. Bd6 {[%clk 0:01:52.5]} 13... Rfc8 {[%clk
0:02:13.2]} 14. Rfc1 {[%clk 0:01:32.1]} 14... Qb6 {[%clk 0:01:53.9]} 15. dxc5
{[%clk 0:01:19.1]} 15... Bxc5 {[%clk 0:01:52.6]} 16. Qxb6 {[%clk 0:01:15.3]}
16... axb6 {[%clk 0:01:52.5]} 17. Be5 {[%clk 0:01:11.2]} 17... Nd7 {[%clk
0:01:44.2]} 18. Bg3 {[%clk 0:01:10.6]} 18... Bb4 {[%clk 0:01:38.5]} 19. Bb5
{[%clk 0:01:00.4]} 19... Nc5 {[%clk 0:01:35.1]} 20. Na4 {[%clk 0:00:21.1]} 20...
Nxa4 {[%clk 0:01:19]} 21. Rxc8+ {[%clk 0:00:21.4]} 21... Rxc8 {[%clk 0:01:18.8]}
22. Bxa4 {[%clk 0:00:22.3]} 22... Bd3 {[%clk 0:01:15.1]} 23. h3 {[%clk
0:00:22.1]} 23... h6 {[%clk 0:01:11.6]} 24. a3 {[%clk 0:00:22]} 24... Be7 {[%clk
0:01:07.5]} 25. Be5 {[%clk 0:00:20.9]} 25... b5 {[%clk 0:01:04.1]} 26. Bd1
{[%clk 0:00:19.9]} 26... f6 {[%clk 0:01:01]} 27. Bc3 {[%clk 0:00:19.2]} 27...
Kf7 {[%clk 0:00:59.7]} 28. Bg4 {[%clk 0:00:17.1]} 28... f5 {[%clk 0:00:47.9]}
29. Bf3 {[%clk 0:00:15]} 29... Bf6 {[%clk 0:00:46.5]} 30. Bxf6 {[%clk
0:00:13.4]} 30... Kxf6 {[%clk 0:00:46.4]} 31. Rd1 {[%clk 0:00:14]} 31... Be4
{[%clk 0:00:42.3]} 32. Be2 {[%clk 0:00:13]} 32... Rc2 {[%clk 0:00:38.7]} 33.
Bxb5 {[%clk 0:00:13]} 33... Rxb2 {[%clk 0:00:39.1]} 34. a4 {[%clk 0:00:13.6]}
34... Ra2 {[%clk 0:00:32.6]} 35. f3 {[%clk 0:00:12.7]} 35... Bc2 {[%clk
0:00:31.8]} 36. Rd4 {[%clk 0:00:13.1]} 36... Ke7 {[%clk 0:00:30.6]} 37. Rb4
{[%clk 0:00:11.1]} 37... Kd6 {[%clk 0:00:30.1]} 38. Be8 {[%clk 0:00:11.3]} 38...
g5 {[%clk 0:00:24.7]} 39. Kh2 {[%clk 0:00:04.3]} 39... Bd1 {[%clk 0:00:22.5]}
40. Kg1 {[%clk 0:00:03.7]} 40... Bc2 {[%clk 0:00:22]} 41. h4 {[%clk 0:00:03.3]}
41... Ke7 {[%clk 0:00:18.3]} 42. Bb5 {[%clk 0:00:02.6]} 42... Kf6 {[%clk
0:00:17.6]} 43. hxg5+ {[%clk 0:00:02.9]} 43... hxg5 {[%clk 0:00:17.4]} 44. Bc6
{[%clk 0:00:03.4]} 44... Ke7 {[%clk 0:00:14.1]} 45. Rb7+ {[%clk 0:00:02.6]}
45... Kd6 {[%clk 0:00:14.2]} 46. Bb5 {[%clk 0:00:02.7]} 46... Bxa4 {[%clk
0:00:11.1]} 47. Bxa4 {[%clk 0:00:02.8]} 47... Rxa4 {[%clk 0:00:10.9]} 48. Rg7
{[%clk 0:00:03.5]} 48... g4 {[%clk 0:00:10.8]} 49. Kf2 {[%clk 0:00:04]} 49...
gxf3 {[%clk 0:00:10.4]} 50. gxf3 {[%clk 0:00:04.9]} 50... f4 {[%clk 0:00:07.1]}
51. exf4 {[%clk 0:00:04.2]} 51... Rxf4 {[%clk 0:00:07.3]} 52. Ke3 {[%clk
0:00:04.9]} 52... Ra4 {[%clk 0:00:07.7]} 53. Rg8 {[%clk 0:00:05.1]} 53... Ra3+
{[%clk 0:00:07.4]} 54. Ke2 {[%clk 0:00:05.6]} 54... Ke5 {[%clk 0:00:05.6]} 55.
Rg4 {[%clk 0:00:04.6]} 55... Kf5 {[%clk 0:00:05.2]} 56. Rb4 {[%clk 0:00:04.4]}
56... e5 {[%clk 0:00:05.3]} 57. Rb8 {[%clk 0:00:04.8]} 57... d4 {[%clk
0:00:05.2]} 58. Rf8+ {[%clk 0:00:04.5]} 58... Ke6 {[%clk 0:00:05.6]} 59. Re8+
{[%clk 0:00:05.2]} 59... Kd6 {[%clk 0:00:05.8]} 60. Rd8+ {[%clk 0:00:05.4]}
60... Ke7 {[%clk 0:00:06.1]} 61. Rb8 {[%clk 0:00:05.5]} 61... Ra5 {[%clk
0:00:05.6]} 62. Rb6 {[%clk 0:00:05]} 62... Rd5 {[%clk 0:00:04.8]} 63. Kd3 {[%clk
0:00:05.2]} 63... Rd6 {[%clk 0:00:05.2]} 64. Rb5 {[%clk 0:00:04.1]} 64... Kf6
{[%clk 0:00:04.2]} 65. Ra5 {[%clk 0:00:03.6]} 65... Kf5 {[%clk 0:00:04.1]} 66.
Ra8 {[%clk 0:00:02.9]} 66... Rf6 {[%clk 0:00:04.1]} 67. Re8 {[%clk 0:00:02.2]}
67... Kf4 {[%clk 0:00:04.2]} 68. Re7 {[%clk 0:00:02.7]} 68... Kxf3 {[%clk
0:00:03]} 69. Rxe5 {[%clk 0:00:02.5]} 69... Rf4 {[%clk 0:00:03.6]} 70. Re8
{[%clk 0:00:02.3]} 70... Kf2 {[%clk 0:00:03.8]} 71. Re7 {[%clk 0:00:02.5]} 71...
Rf3+ {[%clk 0:00:03.9]} 72. Kxd4 {[%clk 0:00:02.8]} 72... Rf4+ {[%clk
0:00:03.8]} 73. Kd3 {[%clk 0:00:03.4]} 73... Rf3+ {[%clk 0:00:03.9]} 74. Kd2
{[%clk 0:00:04]} 74... Rf4 {[%clk 0:00:03.8]} 75. Ra7 {[%clk 0:00:04.1]} 75...
Rd4+ {[%clk 0:00:03.8]} 76. Kc3 {[%clk 0:00:04.8]} 76... Rf4 {[%clk 0:00:03.9]}
77. Kd3 {[%clk 0:00:05.2]} 77... Rf3+ {[%clk 0:00:02.3]} 78. Ke4 {[%clk
0:00:05.7]} 78... Re3+ {[%clk 0:00:02.6]} 79. Kd4 {[%clk 0:00:06.3]} 79... Rf3
{[%clk 0:00:03]} 80. Ra2+ {[%clk 0:00:06.5]} 80... Kg3 {[%clk 0:00:03.1]} 81.
Ke4 {[%clk 0:00:07.4]} 81... Rf4+ {[%clk 0:00:03.3]} 82. Ke5 {[%clk 0:00:07.3]}
82... Rf3 {[%clk 0:00:03.7]} 83. Ra8 {[%clk 0:00:07.5]} 83... Re3+ {[%clk
0:00:03.7]} 84. Kd4 {[%clk 0:00:08.1]} 84... Rf3 {[%clk 0:00:04.2]} 85. Ke4
{[%clk 0:00:08.7]} 85... Rf4+ {[%clk 0:00:04]} 86. Ke5 {[%clk 0:00:09.3]} 86...
Rf3 {[%clk 0:00:04.5]} 87. Rg8+ {[%clk 0:00:09.5]} 87... Kf2 {[%clk 0:00:04.6]}
88. Ke4 {[%clk 0:00:10.4]} 88... Re3+ {[%clk 0:00:04.7]} 89. Kd4 {[%clk
0:00:11.1]} 89... Rf3 {[%clk 0:00:05.2]} 90. Rb8 {[%clk 0:00:11]} 90... Rf4+
{[%clk 0:00:05.3]} 91. Ke5 {[%clk 0:00:10.8]} 91... Rf3 {[%clk 0:00:05.5]} 92.
Ke4 {[%clk 0:00:10.9]} 92... Re3+ {[%clk 0:00:05.3]} 93. Kf4 {[%clk 0:00:11.6]}
93... Rf3+ {[%clk 0:00:05.6]} 94. Kg4 {[%clk 0:00:12.2]} 94... Rg3+ {[%clk
0:00:05.5]} 95. Kh4 {[%clk 0:00:12.8]} 95... Rf3 {[%clk 0:00:06.1]} 96. Rb2+
{[%clk 0:00:12.1]} 96... Ke3 {[%clk 0:00:06]} 97. Kg4 {[%clk 0:00:13]} 97...
Rf4+ {[%clk 0:00:05.6]} 98. Kg5 {[%clk 0:00:13.6]} 98... Rf3 {[%clk 0:00:06.1]}
99. Ra2 {[%clk 0:00:13.4]} 99... Rg3+ {[%clk 0:00:05.7]} 100. Kf5 {[%clk
0:00:13.6]} 100... Rf3+ {[%clk 0:00:06]} 101. Ke5 {[%clk 0:00:14.2]} 101... Rg3
{[%clk 0:00:05.7]} 102. Ra3+ {[%clk 0:00:11.1]} 102... Kf2 {[%clk 0:00:06.1]}
103. Ra1 {[%clk 0:00:11]} 103... Re3+ {[%clk 0:00:05.5]} 104. Kf4 {[%clk
0:00:10.9]} 104... Rf3+ {[%clk 0:00:05.1]} 105. Ke4 {[%clk 0:00:11.5]} 105...
Re3+ {[%clk 0:00:05]} 106. Kd4 {[%clk 0:00:12.2]} 106... Rf3 {[%clk 0:00:05.2]}
107. Ra8 {[%clk 0:00:12]} 107... Rf4+ {[%clk 0:00:04.9]} 108. Ke5 {[%clk
0:00:12]} 108... Rf3 {[%clk 0:00:05.3]} 109. Ke4 {[%clk 0:00:12.5]} 109... Re3+
{[%clk 0:00:05]} 110. Kd4 {[%clk 0:00:13.2]} 110... Rf3 {[%clk 0:00:05.3]} 111.
Ra2+ {[%clk 0:00:13.1]} 111... Kg3 {[%clk 0:00:05.4]} 112. Ke4 {[%clk 0:00:14]}
112... Rf4+ {[%clk 0:00:05.3]} 113. Ke5 {[%clk 0:00:14.6]} 113... Rf3 {[%clk
0:00:05.5]} 114. Ra8 {[%clk 0:00:14.2]} 114... Re3+ {[%clk 0:00:05.6]} 115. Kd4
{[%clk 0:00:14.3]} 115... Rf3 {[%clk 0:00:06]} 116. Ke4 {[%clk 0:00:14.9]}
116... Rf4+ {[%clk 0:00:06.1]} 117. Ke3 {[%clk 0:00:15.5]} 117... Rf3+ {[%clk
0:00:06.5]} 118. Ke2 {[%clk 0:00:16.1]} 118... Rf2+ {[%clk 0:00:06.8]} 119. Ke1
{[%clk 0:00:16.8]} 119... Rf3 {[%clk 0:00:06.8]} 120. Kd2 {[%clk 0:00:16.3]}
120... Rf2+ {[%clk 0:00:06.6]} 121. Ke3 {[%clk 0:00:16.9]} 121... Rf3+ {[%clk
0:00:07.1]} 122. Ke4 {[%clk 0:00:17.5]} 1/2-1/2

[Event "Early-Titled-Tuesday-Blitz-January-30-2024"]
[Site "Chess.com"]
[Date "2024.01.30"]
[Round "2"]
[White "Statham_01"]
[Black "SaiAgni_98"]
[Result "0-1"]
[WhiteElo "2553"]
[BlackElo "2467"]
[TimeControl "180+1"]
[EndTime "8:22:52 PST"]
[Termination "SaiAgni_98 won on time"]

1. e4 {[%clk 0:03:00.9]} 1... e6 {[%clk 0:03:00]} 2. d4 {[%clk 0:02:58.4]} 2...
d5 {[%clk 0:03:00.1]} 3. Nc3 {[%clk 0:02:58]} 3... Nf6 {[%clk 0:02:59.5]} 4. e5
{[%clk 0:02:58.1]} 4... Nfd7 {[%clk 0:02:59.5]} 5. Nf3 {[%clk 0:02:58.4]} 5...
c5 {[%clk 0:02:58.3]} 6. Bg5 {[%clk 0:02:58.7]} 6... Qa5 {[%clk 0:02:46.5]} 7.
a3 {[%clk 0:02:46.7]} 7... Nc6 {[%clk 0:02:41.6]} 8. dxc5 {[%clk 0:02:31.3]}
8... Qxc5 {[%clk 0:02:28.5]} 9. Be3 {[%clk 0:02:24.4]} 9... Qa5 {[%clk
0:02:23.4]} 10. b4 {[%clk 0:02:22.6]} 10... Qc7 {[%clk 0:02:17.2]} 11. Nb5
{[%clk 0:02:15.5]} 11... Qb8 {[%clk 0:02:11.9]} 12. c4 {[%clk 0:01:49.4]} 12...
dxc4 {[%clk 0:01:58.9]} 13. Nd6+ {[%clk 0:01:39.1]} 13... Bxd6 {[%clk
0:01:58.3]} 14. exd6 {[%clk 0:01:40]} 14... O-O {[%clk 0:01:51]} 15. Bxc4 {[%clk
0:01:37.6]} 15... Rd8 {[%clk 0:01:45.8]} 16. Ng5 {[%clk 0:01:08.1]} 16... Nf6
{[%clk 0:01:44.5]} 17. Bf4 {[%clk 0:01:00.9]} 17... h6 {[%clk 0:01:38.9]} 18.
Nf3 {[%clk 0:00:55.8]} 18... e5 {[%clk 0:01:12.9]} 19. Nxe5 {[%clk 0:00:42.8]}
19... Nxe5 {[%clk 0:01:06]} 20. Bxe5 {[%clk 0:00:43.7]} 20... Re8 {[%clk
0:00:58.2]} 21. f4 {[%clk 0:00:43.5]} 21... b5 {[%clk 0:00:43.7]} 22. Bb3 {[%clk
0:00:43.4]} 22... Qb6 {[%clk 0:00:43.7]} 23. Qd2 {[%clk 0:00:28.8]} 23... Bg4
{[%clk 0:00:41.4]} 24. Qf2 {[%clk 0:00:23.3]} 24... Qxd6 {[%clk 0:00:26]} 25.
O-O {[%clk 0:00:23.2]} 25... Qb6 {[%clk 0:00:24.4]} 26. Bd4 {[%clk 0:00:17.5]}
26... Qd8 {[%clk 0:00:21.4]} 27. h3 {[%clk 0:00:16.2]} 27... Re2 {[%clk
0:00:19.5]} 28. Bxf6 {[%clk 0:00:15]} 28... Qxf6 {[%clk 0:00:18]} 29. Qg3 {[%clk
0:00:13.6]} 29... Be6 {[%clk 0:00:16.6]} 30. Bd1 {[%clk 0:00:11.9]} 30... Rd2
{[%clk 0:00:15.6]} 31. Bf3 {[%clk 0:00:12.1]} 31... Rad8 {[%clk 0:00:15]} 32.
Rae1 {[%clk 0:00:12.3]} 32... Bd5 {[%clk 0:00:14.9]} 33. Bxd5 {[%clk 0:00:10.6]}
33... R2xd5 {[%clk 0:00:12.6]} 34. Re5 {[%clk 0:00:10.6]} 34... Qb6+ {[%clk
0:00:11.2]} 35. Kh2 {[%clk 0:00:10.2]} 35... Rd3 {[%clk 0:00:12.1]} 36. Qg4
{[%clk 0:00:08.6]} 36... Rd2 {[%clk 0:00:12]} 37. Rfe1 {[%clk 0:00:08.4]} 37...
Qf6 {[%clk 0:00:11.2]} 38. h4 {[%clk 0:00:05.7]} 38... g6 {[%clk 0:00:10.9]} 39.
h5 {[%clk 0:00:05.7]} 39... Kg7 {[%clk 0:00:09]} 40. f5 {[%clk 0:00:04.9]} 40...
g5 {[%clk 0:00:09.1]} 41. Re7 {[%clk 0:00:04.9]} 41... Qd6+ {[%clk 0:00:09.2]}
42. R7e5 {[%clk 0:00:04.4]} 42... Rd5 {[%clk 0:00:09.3]} 43. Qg3 {[%clk
0:00:04.2]} 43... Rxe5 {[%clk 0:00:08.6]} 44. Rxe5 {[%clk 0:00:05.1]} 44... Kf6
{[%clk 0:00:06.3]} 45. Rxb5 {[%clk 0:00:05.2]} 45... Qxg3+ {[%clk 0:00:06.3]}
46. Kxg3 {[%clk 0:00:06.1]} 46... Rd3+ {[%clk 0:00:04.5]} 47. Kg4 {[%clk
0:00:06.5]} 47... Rd4+ {[%clk 0:00:02.5]} 48. Kf3 {[%clk 0:00:06.4]} 48... Rd3+
{[%clk 0:00:03.4]} 49. Ke4 {[%clk 0:00:06.8]} 49... Rxa3 {[%clk 0:00:04.1]} 50.
Ra5 {[%clk 0:00:07.2]} 50... Rg3 {[%clk 0:00:02.7]} 51. Ra6+ {[%clk 0:00:07.5]}
51... Kg7 {[%clk 0:00:02.9]} 52. f6+ {[%clk 0:00:08.4]} 52... Kg8 {[%clk
0:00:02.8]} 53. Rxa7 {[%clk 0:00:08.3]} 53... Rg4+ {[%clk 0:00:03.4]} 54. Kf5
{[%clk 0:00:07.5]} 54... Rxb4 {[%clk 0:00:04.3]} 55. Ra8+ {[%clk 0:00:07.5]}
55... Kh7 {[%clk 0:00:04.9]} 56. Ra7 {[%clk 0:00:07.6]} 56... Rb5+ {[%clk
0:00:05]} 57. Ke4 {[%clk 0:00:07.5]} 57... Kg8 {[%clk 0:00:05.9]} 58. Ra8+
{[%clk 0:00:07.6]} 58... Kh7 {[%clk 0:00:06.4]} 59. Rf8 {[%clk 0:00:08]} 59...
Rb7 {[%clk 0:00:06.5]} 60. Kd5 {[%clk 0:00:07.5]} 60... Rd7+ {[%clk 0:00:06.4]}
61. Kc6 {[%clk 0:00:06.8]} 61... Ra7 {[%clk 0:00:06.7]} 62. Re8 {[%clk
0:00:06.1]} 62... g4 {[%clk 0:00:05.8]} 63. Kd5 {[%clk 0:00:05.1]} 63... Ra5+
{[%clk 0:00:05.3]} 64. Ke4 {[%clk 0:00:05.1]} 64... Rxh5 {[%clk 0:00:05.7]} 65.
Kf4 {[%clk 0:00:04.5]} 65... Rg5 {[%clk 0:00:06]} 66. g3 {[%clk 0:00:02.8]}
66... Kg6 {[%clk 0:00:06.5]} 67. Rh8 {[%clk 0:00:03.3]} 67... Rf5+ {[%clk
0:00:05.8]} 68. Kxg4 {[%clk 0:00:03.3]} 68... Rxf6 {[%clk 0:00:05.6]} 69. Rg8+
{[%clk 0:00:02.9]} 69... Kh7 {[%clk 0:00:06.2]} 70. Rf8 {[%clk 0:00:03.6]} 70...
Kg7 {[%clk 0:00:07.1]} 71. Ra8 {[%clk 0:00:03.8]} 71... Rg6+ {[%clk 0:00:07.3]}
72. Kh4 {[%clk 0:00:04.1]} 72... Rf6 {[%clk 0:00:06.8]} 73. g4 {[%clk
0:00:04.4]} 73... Rg6 {[%clk 0:00:07.1]} 74. Kh5 {[%clk 0:00:04.8]} 74... Re6
{[%clk 0:00:08]} 75. Ra7 {[%clk 0:00:04.5]} 75... Re5+ {[%clk 0:00:08.4]} 76.
Kh4 {[%clk 0:00:04.9]} 76... Kg6 {[%clk 0:00:09.2]} 77. Ra6+ {[%clk 0:00:05]}
77... f6 {[%clk 0:00:09.8]} 78. Ra7 {[%clk 0:00:05.3]} 78... Re4 {[%clk
0:00:10.2]} 79. Ra8 {[%clk 0:00:04.8]} 79... h5 {[%clk 0:00:10.3]} 80. Rg8+
{[%clk 0:00:04.8]} 80... Kh7 {[%clk 0:00:10.8]} 81. Rb8 {[%clk 0:00:04.7]} 81...
hxg4 {[%clk 0:00:08.2]} 82. Rb6 {[%clk 0:00:04.5]} 82... Kg6 {[%clk 0:00:08.5]}
83. Rb5 {[%clk 0:00:05]} 83... f5 {[%clk 0:00:07.6]} 84. Rb6+ {[%clk 0:00:05.4]}
84... Kf7 {[%clk 0:00:07.9]} 85. Rb7+ {[%clk 0:00:05.1]} 85... Ke6 {[%clk
0:00:08.1]} 86. Rb6+ {[%clk 0:00:04.9]} 86... Ke5 {[%clk 0:00:08.5]} 87. Rb5+
{[%clk 0:00:03.8]} 87... Kf4 {[%clk 0:00:08.9]} 88. Rb3 {[%clk 0:00:02.6]} 88...
Ra4 {[%clk 0:00:08.9]} 89. Rc3 {[%clk 0:00:01.6]} 89... Ra1 {[%clk 0:00:09.2]}
90. Rc4+ {[%clk 0:00:02]} 90... Ke3 {[%clk 0:00:09.8]} 91. Kg5 {[%clk
0:00:02.3]} 91... Rf1 {[%clk 0:00:10.1]} 92. Rc3+ {[%clk 0:00:02.3]} 92... Ke4
{[%clk 0:00:10.2]} 93. Rc4+ {[%clk 0:00:02.4]} 93... Kd5 {[%clk 0:00:10.8]} 94.
Ra4 {[%clk 0:00:02.7]} 94... g3 {[%clk 0:00:11.1]} 95. Ra2 {[%clk 0:00:02.8]}
95... f4 {[%clk 0:00:10.8]} 96. Kg4 {[%clk 0:00:03.7]} 96... Ke4 {[%clk
0:00:11.3]} 97. Ra4+ {[%clk 0:00:04]} 97... Ke3 {[%clk 0:00:11.7]} 98. Ra3+
{[%clk 0:00:04.5]} 98... Kd4 {[%clk 0:00:12.1]} 99. Ra4+ {[%clk 0:00:04.6]}
99... Kc3 {[%clk 0:00:12.7]} 100. Ra2 {[%clk 0:00:04.6]} 100... Rf2 {[%clk
0:00:11.4]} 101. Ra3+ {[%clk 0:00:03.8]} 101... Kb4 {[%clk 0:00:11.6]} 102. Ra1
{[%clk 0:00:03.8]} 102... g2 {[%clk 0:00:12.1]} 103. Kh3 {[%clk 0:00:02.5]}
103... f3 {[%clk 0:00:12.4]} 104. Kh2 {[%clk 0:00:02.3]} 104... Rf1 {[%clk
0:00:12.9]} 105. Ra2 {[%clk 0:00:02.6]} 105... g1=Q+ {[%clk 0:00:12.8]} 106. Kh3
{[%clk 0:00:02.6]} 106... Qh1+ {[%clk 0:00:13.2]} 107. Kg4 {[%clk 0:00:02.8]}
107... Rg1+ {[%clk 0:00:12.9]} 108. Kf4 {[%clk 0:00:03.1]} 108... Qh4+ {[%clk
0:00:13.2]} 109. Ke3 {[%clk 0:00:03.4]} 109... Qe7+ {[%clk 0:00:12.8]} 110. Kf2
{[%clk 0:00:03.5]} 110... Qe1+ {[%clk 0:00:12.3]} 111. Kxf3 {[%clk 0:00:03.7]}
111... Rg3+ {[%clk 0:00:13.2]} 0-1

[Event "Early-Titled-Tuesday-Blitz-January-30-2024"]
[Site "Chess.com"]
[Date "2024.01.30"]
[Round "3"]
[White "GatoRojo150"]
[Black "AsselLesbekova"]
[Result "1-0"]
[WhiteElo "2581"]
[BlackElo "2299"]
[TimeControl "180+1"]
[EndTime "8:24:22 PST"]
[Termination "GatoRojo150 won by resignation"]

1. e4 {[%clk 0:03:00.9]} 1... c5 {[%clk 0:02:58.8]} 2. Nf3 {[%clk 0:03:00.9]}
2... Nc6 {[%clk 0:02:59.3]} 3. Nc3 {[%clk 0:03:01.4]} 3... Nf6 {[%clk
0:02:56.9]} 4. d4 {[%clk 0:02:59]} 4... cxd4 {[%clk 0:02:57.8]} 5. Nxd4 {[%clk
0:02:59.7]} 5... e5 {[%clk 0:02:58.4]} 6. Ndb5 {[%clk 0:02:56.9]} 6... d6 {[%clk
0:02:58.6]} 7. Bg5 {[%clk 0:02:56.1]} 7... a6 {[%clk 0:02:58.9]} 8. Na3 {[%clk
0:02:56.4]} 8... b5 {[%clk 0:02:58.6]} 9. Bxf6 {[%clk 0:02:56.9]} 9... Qxf6
{[%clk 0:02:57.3]} 10. Nd5 {[%clk 0:02:56.6]} 10... Qd8 {[%clk 0:02:57.1]} 11.
Bxb5 {[%clk 0:02:56.6]} 11... axb5 {[%clk 0:02:56.2]} 12. Nxb5 {[%clk
0:02:57.5]} 12... Ra4 {[%clk 0:02:56.4]} 13. Nbc7+ {[%clk 0:02:56.2]} 13... Kd7
{[%clk 0:02:55.6]} 14. Qg4+ {[%clk 0:02:56.2]} 1-0

[Event "Early-Titled-Tuesday-Blitz-January-30-2024"]
[Site "Chess.com"]
[Date "2024.01.30"]
[Round "3"]
[White "familijatop71"]
[Black "Road2GM3000"]
[Result "0-1"]
[WhiteElo "2257"]
[BlackElo "2513"]
[TimeControl "180+1"]
[EndTime "8:25:23 PST"]
[Termination "Road2GM3000 won by resignation"]

1. e4 {[%clk 0:03:00.9]} 1... c5 {[%clk 0:03:00.1]} 2. Nf3 {[%clk 0:03:00.7]}
2... d6 {[%clk 0:02:59.5]} 3. d4 {[%clk 0:03:00.4]} 3... cxd4 {[%clk 0:03:00.4]}
4. Nxd4 {[%clk 0:03:00.6]} 4... Nf6 {[%clk 0:03:00.9]} 5. Nc3 {[%clk 0:03:00.6]}
5... a6 {[%clk 0:03:01.5]} 6. Bg5 {[%clk 0:03:00.7]} 6... e6 {[%clk 0:03:01.9]}
7. f4 {[%clk 0:03:00.9]} 7... Qb6 {[%clk 0:03:02.7]} 8. Qd2 {[%clk 0:03:00.5]}
8... Nc6 {[%clk 0:03:03.1]} 9. Nxc6 {[%clk 0:02:54.2]} 9... bxc6 {[%clk
0:03:01.7]} 10. e5 {[%clk 0:02:31.8]} 10... Nd5 {[%clk 0:03:00.4]} 11. Nxd5
{[%clk 0:02:25.7]} 11... cxd5 {[%clk 0:03:00.5]} 12. b3 {[%clk 0:02:17.1]} 12...
dxe5 {[%clk 0:02:58.6]} 13. fxe5 {[%clk 0:02:10.2]} 13... Bd7 {[%clk 0:02:55.4]}
14. Bd3 {[%clk 0:02:06.7]} 14... Rc8 {[%clk 0:02:48.3]} 15. Be3 {[%clk 0:01:53]}
15... d4 {[%clk 0:02:47.1]} 16. Bf2 {[%clk 0:01:52.2]} 16... Bb4 {[%clk
0:02:45.9]} 17. c3 {[%clk 0:01:49.5]} 17... Bxc3 {[%clk 0:02:45.9]} 18. Qxc3
{[%clk 0:01:49.8]} 18... Rxc3 {[%clk 0:02:46.4]} 0-1

[Event "Early-Titled-Tuesday-Blitz-January-30-2024"]
[Site "Chess.com"]
[Date "2024.01.30"]
[Round "3"]
[White "MikeSailer"]
[Black "Shodikulov_Jamshid1990"]
[Result "0-1"]
[WhiteElo "2134"]
[BlackElo "2398"]
[TimeControl "180+1"]
[EndTime "8:25:46 PST"]
[Termination "Shodikulov_Jamshid1990 won by resignation"]

1. d4 {[%clk 0:02:59.8]} 1... Nf6 {[%clk 0:02:59.7]} 2. Bf4 {[%clk 0:02:58.8]}
2... c5 {[%clk 0:02:57.4]} 3. e3 {[%clk 0:02:58.8]} 3... Qb6 {[%clk 0:02:57]} 4.
Nc3 {[%clk 0:02:58.1]} 4... cxd4 {[%clk 0:02:37.2]} 5. exd4 {[%clk 0:02:56.4]}
5... d5 {[%clk 0:02:31.4]} 6. Bd3 {[%clk 0:02:30.3]} 6... a6 {[%clk 0:02:25]} 7.
a3 {[%clk 0:02:08.8]} 7... Nc6 {[%clk 0:02:20.6]} 8. Nf3 {[%clk 0:02:07.3]} 8...
Bg4 {[%clk 0:02:19.9]} 9. Na4 {[%clk 0:01:52.8]} 9... Qa5+ {[%clk 0:02:14.2]}
10. b4 {[%clk 0:01:50.3]} 10... Qxa4 {[%clk 0:02:11.4]} 0-1

[Event "Early-Titled-Tuesday-Blitz-January-30-2024"]
[Site "Chess.com"]
[Date "2024.01.30"]
[Round "3"]
[White "Massakru"]
[Black "giovannibrandao7"]
[Result "1-0"]
[WhiteElo "2407"]
[BlackElo "2150"]
[TimeControl "180+1"]
[EndTime "8:25:48 PST"]
[Termination "Massakru won by resignation"]

1. e4 {[%clk 0:03:00.9]} 1... c5 {[%clk 0:02:59.5]} 2. Nf3 {[%clk 0:03:01]} 2...
d6 {[%clk 0:03:00.1]} 3. c3 {[%clk 0:03:01.4]} 3... Nf6 {[%clk 0:03:00.3]} 4. h3
{[%clk 0:03:01.6]} 4... Nc6 {[%clk 0:02:59.2]} 5. Bd3 {[%clk 0:03:01.8]} 5... e6
{[%clk 0:02:58.7]} 6. Bc2 {[%clk 0:03:01.8]} 6... Be7 {[%clk 0:02:59]} 7. O-O
{[%clk 0:03:01.6]} 7... O-O {[%clk 0:02:58.2]} 8. d4 {[%clk 0:03:02.1]} 8...
cxd4 {[%clk 0:02:56.7]} 9. cxd4 {[%clk 0:03:03]} 9... h6 {[%clk 0:02:40.9]} 10.
Nc3 {[%clk 0:03:03]} 10... a6 {[%clk 0:02:40.3]} 11. Qe2 {[%clk 0:03:02.2]}
11... b5 {[%clk 0:02:37.5]} 12. a3 {[%clk 0:03:01.9]} 12... Bb7 {[%clk
0:02:37.4]} 13. e5 {[%clk 0:02:58.8]} 13... dxe5 {[%clk 0:02:00]} 14. dxe5
{[%clk 0:02:58.9]} 14... Nd7 {[%clk 0:01:47.4]} 15. Qe4 {[%clk 0:02:58.6]} 15...
f5 {[%clk 0:01:47.7]} 16. exf6 {[%clk 0:02:58]} 16... Nxf6 {[%clk 0:01:48.1]}
17. Qxe6+ {[%clk 0:02:57.5]} 17... Kh8 {[%clk 0:01:48.7]} 18. Nh4 {[%clk
0:02:44.8]} 1-0

[Event "Early-Titled-Tuesday-Blitz-January-30-2024"]
[Site "Chess.com"]
[Date "2024.01.30"]
[Round "3"]
[White "falzehope0"]
[Black "tarno17"]
[Result "1-0"]
[WhiteElo "2375"]
[BlackElo "2056"]
[TimeControl "180+1"]
[EndTime "8:26:04 PST"]
[Termination "falzehope0 won by resignation"]

1. d4 {[%clk 0:02:56]} 1... d5 {[%clk 0:03:00.1]} 2. e3 {[%clk 0:02:55.1]} 2...
Nf6 {[%clk 0:02:59.4]} 3. Bd3 {[%clk 0:02:37.5]} 3... c6 {[%clk 0:02:53.2]} 4.
f4 {[%clk 0:02:35.3]} 4... Bg4 {[%clk 0:02:25.6]} 5. Ne2 {[%clk 0:02:33.4]} 5...
e6 {[%clk 0:02:17.9]} 6. Nd2 {[%clk 0:02:32.8]} 6... Nbd7 {[%clk 0:02:11.1]} 7.
O-O {[%clk 0:02:30.2]} 7... c5 {[%clk 0:02:05.1]} 8. c3 {[%clk 0:02:29.8]} 8...
Bd6 {[%clk 0:01:53.6]} 9. Nf3 {[%clk 0:02:28.6]} 9... cxd4 {[%clk 0:01:38.3]}
10. exd4 {[%clk 0:02:28.2]} 10... O-O {[%clk 0:01:31.6]} 11. Ne5 {[%clk
0:02:26.7]} 11... Ne4 {[%clk 0:01:24.6]} 12. Nxg4 {[%clk 0:02:25.3]} 1-0